fUST/lending_fUST_20250927
["ID","MTS","AMOUNT","RATE_DAILY","PERIOD"]
[388016820,1758965462312,-1090.43,0.00036986,9]
[388016821,1758965462322,-480.0,0.00036986,9]
[388016822,1758965462331,-583.70434838,0.00036986,9]
[388016823,1758965462342,-5287.88,0.00036986,9]
[388016824,1758965462351,-169.479401,0.00037026,13]
[388016825,1758965462360,-1813.6434505,0.0003712,2]
[388016826,1758965462369,-500.0,0.00037178,5]
[388016827,1758965462378,-417.998,0.00037203,2]
[388016828,1758965462387,-635.0,0.00037203,2]
[388016829,1758965462396,-2161.0,0.00037203,2]
[388016830,1758965462405,-410.0,0.00037203,2]
[388016831,1758965462414,-1001.71,0.0003726,9]
[388016832,1758965462424,-497.21,0.0003726,9]
[388016833,1758965462433,-1355.5,0.0003726,9]
[388016834,1758965462442,-718.46,0.0003726,9]
[388016835,1758965462451,-1559.42,0.0003726,9]
[388016836,1758965462461,-472.06550541,0.0003726,9]
[388016837,1758965462470,-480.0,0.0003726,9]
[388016838,1758965462479,-842.28,0.0003726,9]
[388016839,1758965462488,-1496.11,0.0003726,9]
[388016840,1758965462497,-480.0,0.0003726,9]
[388016841,1758965462507,-480.0,0.0003726,9]
[388016842,1758965462516,-480.0,0.0003726,9]
[388016843,1758965462525,-1203.69,0.0003726,9]
[388016844,1758965462534,-480.0,0.0003726,9]
[388016845,1758965462549,-1447.48,0.0003726,9]
[388016846,1758965462561,-480.0,0.0003726,9]
[388016847,1758965462571,-480.0,0.0003726,9]
[388016848,1758965462581,-884.86,0.0003726,9]
[388016849,1758965462590,-480.0,0.0003726,9]
[388016850,1758965462599,-480.0,0.0003726,9]
[388016851,1758965462609,-480.0,0.0003726,9]
[388016852,1758965462619,-618.88,0.0003726,9]
[388016853,1758965462628,-153.69326161,0.0003726,9]
[388016854,1758965462638,-480.0,0.0003726,9]
[388016855,1758965462647,-530.85,0.0003726,9]
[388016856,1758965462656,-480.0,0.0003726,9]
[388016857,1758965462666,-480.0,0.0003726,9]
[388016858,1758965462675,-4684.08,0.0003726,9]
[388016859,1758965462684,-480.0,0.0003726,9]
[388016860,1758965462694,-2673.58,0.0003726,9]
[388016861,1758965462703,-783.65,0.0003726,9]
[388016862,1758965462713,-480.0,0.0003726,9]
[388016863,1758965462723,-499.05,0.0003726,9]
[388016864,1758965462733,-480.0,0.0003726,9]
[388016865,1758965462749,-480.0,0.0003726,9]
[388016866,1758965462758,-480.0,0.0003726,9]
[388016867,1758965462767,-1987.61,0.0003726,9]
[388016868,1758965462776,-480.0,0.0003726,9]
[388016869,1758965462786,-480.0,0.0003726,9]
[388016870,1758965462795,-480.0,0.0003726,9]
[388016871,1758965462804,-564.24010821,0.0003726,9]
[388016872,1758965462815,-831.55,0.0003726,9]
[388016873,1758965462825,-480.0,0.0003726,9]
[388016874,1758965462835,-480.0,0.0003726,9]
[388016875,1758965462845,-480.0,0.0003726,9]
[388016876,1758965462854,-480.0,0.0003726,9]
[388016877,1758965462863,-480.0,0.0003726,9]
[388016878,1758965462873,-480.0,0.0003726,9]
[388016879,1758965462883,-480.0,0.0003726,9]
[388016880,1758965462892,-500.0,0.0003726,9]
[388016881,1758965462902,-498.17920867,0.0003726,9]
[388016882,1758965462911,-481.12,0.0003726,9]
[388016883,1758965462920,-480.0,0.0003726,9]
[388016884,1758965462929,-480.0,0.0003726,9]
[388016885,1758965462938,-480.0,0.0003726,9]
[388016886,1758965462947,-2213.42,0.0003726,9]
[388016887,1758965462956,-524.72,0.0003726,9]
[388016888,1758965462966,-480.0,0.0003726,9]
[388016889,1758965462975,-480.0,0.0003726,9]
[388016890,1758965462985,-480.0,0.0003726,9]
[388016891,1758965462995,-480.0,0.0003726,9]
[388016892,1758965463004,-480.0,0.0003726,9]
[388016893,1758965463013,-480.0,0.0003726,9]
[388016894,1758965463023,-480.0,0.0003726,9]
[388016895,1758965463032,-480.0,0.0003726,9]
[388016896,1758965463042,-480.0,0.0003726,9]
[388016897,1758965463052,-480.0,0.0003726,9]
[388016898,1758965463062,-1547.23,0.0003726,9]
[388016899,1758965463072,-2056.39,0.0003726,9]
[388016900,1758965463085,-665.62,0.0003726,9]
[388016901,1758965463099,-11559.39,0.0003726,9]
[388016902,1758965463108,-480.0,0.0003726,9]
[388016903,1758965463118,-434.83165319,0.0003726,9]
[388016904,1758965463127,-590.62,0.0003726,9]
[388016905,1758965463137,-564.21,0.0003726,9]
[388016906,1758965463147,-480.0,0.0003726,9]
[388016907,1758965463156,-4719.48,0.0003726,9]
[388016908,1758965463167,-639.4,0.0003726,9]
[388016909,1758965463177,-480.0,0.0003726,9]
[388016910,1758965463186,-1096.73,0.0003726,9]
[388016911,1758965463196,-480.0,0.0003726,9]
[388016912,1758965463206,-806.44,0.0003726,9]
[388016913,1758965463215,-480.0,0.0003726,9]
[388016914,1758965463224,-1018.09,0.0003726,9]
[388016915,1758965463234,-1197.51,0.0003726,9]
[388016916,1758965463244,-1571.98,0.0003726,9]
[388016917,1758965463253,-3766.13,0.0003726,9]
[388016918,1758965463263,-11819.47,0.0003726,9]
[388016919,1758965463273,-3081.99,0.0003726,9]
[388016920,1758965463283,-480.0,0.0003726,9]
[388016921,1758965463292,-926.52,0.0003726,9]
[388016922,1758965463301,-480.0,0.0003726,9]
[388016923,1758965463310,-480.0,0.0003726,9]
[388016924,1758965463319,-480.0,0.0003726,9]
[388016925,1758965463328,-842.78,0.0003726,9]
[388016926,1758965463339,-480.0,0.0003726,9]
[388016927,1758965463350,-928.76,0.0003726,9]
[388016928,1758965463359,-3295.26,0.0003726,9]
[388016929,1758965463369,-480.0,0.0003726,9]
[388016930,1758965463378,-580.93,0.0003726,9]
[388016931,1758965463388,-250.34220618,0.0003726,7]
[388016932,1758965463397,-480.0,0.0003726,9]
[388016933,1758965463407,-1043.77,0.0003726,9]
[388016934,1758965463417,-3874.75,0.0003726,9]
[388016935,1758965463427,-1009.91,0.0003726,9]
[388016936,1758965463436,-942.67,0.0003726,9]
[388016937,1758965463445,-501.21,0.0003726,9]
[388016938,1758965463580,-1313.89,0.0003726,9]
[388016939,1758965463590,-3223.0,0.0003726,9]
[388016940,1758965463599,-584.45,0.0003726,9]
[388016941,1758965463609,-1627.27,0.0003726,9]
[388016942,1758965463619,-4633.27,0.0003726,9]
[388016943,1758965463629,-5713.517822,0.0003726,30]
[388016944,1758965463638,-5713.517822,0.0003726,30]
[388016945,1758965463647,-1134.83,0.0003726,9]
[388016946,1758965463656,-5713.517822,0.0003726,30]
[388016947,1758965463666,-480.0,0.0003726,9]
[388016948,1758965463675,-21619.91,0.0003726,9]
[388016949,1758965463685,-5713.517822,0.0003726,30]
[388016950,1758965463694,-170.370056,0.0003726,7]
[388016951,1758965463703,-5441.71,0.0003726,9]
[388016952,1758965463712,-480.0,0.0003726,9]
[388016953,1758965463722,-480.0,0.0003726,9]
[388016954,1758965463731,-480.0,0.0003726,9]
[388016955,1758965463745,-317.10807298,0.0003726,9]
[388016956,1758965463755,-480.0,0.0003726,9]
[388016957,1758965463764,-480.0,0.0003726,9]
[388016958,1758965463774,-234.209729,0.0003726,30]
[388016959,1758965463785,-843.43,0.0003726,9]
[388016960,1758965463794,-234.209729,0.0003726,30]
[388016961,1758965463805,-5508.47,0.0003726,9]
[388016962,1758965463816,-234.209729,0.0003726,30]
[388016963,1758965463826,-234.209729,0.0003726,30]
[388016964,1758965463835,-480.0,0.0003726,9]
[388016965,1758965463845,-2916.503638,0.0003726,30]
[388016966,1758965463855,-2916.503638,0.0003726,30]
[388016967,1758965463865,-1220.46,0.0003726,9]
[388016968,1758965463875,-2916.503638,0.0003726,30]
[388016969,1758965463885,-697.3,0.0003726,9]
[388016970,1758965463895,-2916.503638,0.0003726,30]
[388016971,1758965463904,-303.914462,0.0003726,30]
[388016972,1758965463915,-542.6,0.0003726,9]
[388016973,1758965463925,-303.914462,0.0003726,30]
[388016974,1758965463935,-5350.41,0.0003726,9]
[388016975,1758965463945,-498.04,0.0003726,9]
[388016976,1758965463955,-303.914462,0.0003726,30]
[388016977,1758965463964,-629.49140298,0.0003726,9]
[388016978,1758965463973,-2528.77,0.0003726,9]
[388016979,1758965463983,-303.914462,0.0003726,30]
[388016980,1758965463992,-1397.41,0.0003726,9]
[388016981,1758965464002,-480.0,0.0003726,9]
[388016982,1758965464012,-6012.15,0.0003726,9]
[388016983,1758965464021,-518.88,0.0003726,9]
[388016984,1758965464030,-348.5494669,0.0003726,9]
[388016985,1758965464040,-151.0,0.0003726,30]
[388016986,1758965464049,-151.0,0.0003726,30]
[388016987,1758965464059,-248.738887,0.0003726,30]
[388016988,1758965464068,-151.0,0.0003726,30]
[388016989,1758965464078,-1211.93,0.0003726,9]
[388016990,1758965464087,-151.0,0.0003726,30]
[388016991,1758965464098,-248.738887,0.0003726,30]
[388016992,1758965464108,-151.0,0.0003726,30]
[388016993,1758965464117,-4860.737053,0.0003726,30]
[388016994,1758965464126,-248.738887,0.0003726,30]
[388016995,1758965464136,-151.0,0.0003726,30]
[388016996,1758965464146,-4860.737053,0.0003726,30]
[388016997,1758965464156,-248.738887,0.0003726,30]
[388016998,1758965464166,-803.75,0.0003726,9]
[388016999,1758965464176,-2078.22,0.0003726,9]
[388017000,1758965464186,-4860.737053,0.0003726,30]
[388017001,1758965464196,-4860.737053,0.0003726,30]
[388017002,1758965464205,-1641.68,0.0003726,9]
[388017003,1758965464215,-480.0,0.0003726,9]
[388017004,1758965464224,-856.37,0.0003726,9]
[388017005,1758965464234,-1316.86,0.0003726,9]
[388017006,1758965464244,-151.0,0.0003726,30]
[388017007,1758965464254,-480.0,0.0003726,9]
[388017008,1758965464264,-151.0,0.0003726,30]
[388017009,1758965464273,-151.0,0.0003726,30]
[388017010,1758965464282,-480.0,0.0003726,9]
[388017011,1758965464291,-1543.55,0.0003726,9]
[388017012,1758965464300,-203.147311,0.0003726,30]
[388017013,1758965464310,-151.0,0.0003726,30]
[388017014,1758965464319,-3123.63,0.0003726,9]
[388017015,1758965464328,-480.0,0.0003726,9]
[388017016,1758965464337,-11258.56,0.0003726,9]
[388017017,1758965464348,-480.0,0.0003726,9]
[388017018,1758965464357,-712.46,0.0003726,9]
[388017019,1758965464367,-732.34,0.0003726,9]
[388017020,1758965464376,-568.64,0.0003726,9]
[388017021,1758965464386,-2108.14,0.0003726,9]
[388017022,1758965464395,-480.0,0.0003726,9]
[388017023,1758965464404,-6087.94,0.0003726,9]
[388017024,1758965464414,-1746.09,0.0003726,9]
[388017025,1758965464424,-8187.01,0.0003726,9]
[388017026,1758965464433,-2297.1,0.0003726,9]
[388017027,1758965464443,-621.54,0.0003726,9]
[388017028,1758965464452,-2086.48,0.0003726,9]
[388017029,1758965464463,-602.0,0.0003726,9]
[388017030,1758965464472,-683.86,0.0003726,9]
[388017031,1758965464481,-5953.82,0.0003726,9]
[388017032,1758965464491,-5300.22,0.0003726,9]
[388017033,1758965464501,-2958.79,0.0003726,9]
[388017034,1758965464511,-480.0,0.0003726,9]
[388017035,1758965464520,-1432.8,0.0003726,9]
[388017036,1758965464529,-1182.75,0.0003726,9]
[388017037,1758965464540,-1660.81,0.0003726,9]
[388017038,1758965464549,-3277.19,0.0003726,9]
[388017039,1758965464559,-2989.0,0.0003726,9]
[388017040,1758965464568,-2089.79,0.0003726,9]
[388017041,1758965464577,-480.0,0.0003726,9]
[388017042,1758965464586,-480.0,0.0003726,9]
[388017043,1758965464596,-480.0,0.0003726,9]
[388017044,1758965464606,-3523.57,0.0003726,9]
[388017045,1758965464615,-3121.27,0.0003726,9]
[388017046,1758965464624,-480.0,0.0003726,9]
[388017047,1758965464634,-174.111744,0.0003726,30]
[388017048,1758965464644,-480.0,0.0003726,9]
[388017049,1758965464654,-480.0,0.0003726,9]
[388017050,1758965464663,-1508.49,0.0003726,9]
[388017051,1758965464674,-174.111744,0.0003726,30]
[388017052,1758965464683,-7154.49,0.0003726,9]
[388017053,1758965464693,-174.111744,0.0003726,30]
[388017054,1758965464702,-151.0,0.0003726,30]
[388017055,1758965464711,-174.111744,0.0003726,30]
[388017056,1758965464721,-505.04639712,0.0003726,9]
[388017057,1758965464731,-1323.11,0.0003726,9]
[388017058,1758965464746,-151.0,0.0003726,30]
[388017059,1758965464756,-151.0,0.0003726,30]
[388017060,1758965464766,-480.0,0.0003726,9]
[388017061,1758965464775,-1494.64,0.0003726,9]
[388017062,1758965464786,-193.464701,0.0003726,30]
[388017063,1758965464795,-480.0,0.0003726,9]
[388017064,1758965464805,-2751.74,0.0003726,9]
[388017065,1758965464818,-480.0,0.0003726,9]
[388017066,1758965464828,-644.56,0.0003726,9]
[388017067,1758965464837,-480.0,0.0003726,9]
[388017068,1758965464849,-10000.0,0.0003726,30]
[388017069,1758965464858,-1430.73,0.0003726,9]
[388017070,1758965464868,-629.86272348,0.0003726,9]
[388017071,1758965464877,-10000.0,0.0003726,30]
[388017072,1758965464887,-223.518126,0.0003726,30]
[388017073,1758965464896,-10000.0,0.0003726,30]
[388017074,1758965464906,-457.132483,0.0003726,30]
[388017075,1758965464916,-223.518126,0.0003726,30]
[388017076,1758965464926,-483.57544604,0.0003726,7]
[388017077,1758965464935,-3310.18,0.0003726,9]
[388017078,1758965464944,-10000.0,0.0003726,30]
[388017079,1758965464955,-457.132483,0.0003726,30]
[388017080,1758965464964,-223.518126,0.0003726,30]
[388017081,1758965464974,-1239.55,0.0003726,9]
[388017082,1758965464984,-10000.0,0.0003726,30]
[388017083,1758965464994,-457.132483,0.0003726,30]
[388017084,1758965465004,-480.0,0.0003726,9]
[388017085,1758965465013,-10000.0,0.0003726,30]
[388017086,1758965465022,-457.132483,0.0003726,30]
[388017087,1758965465031,-10000.0,0.0003726,30]
[388017088,1758965465041,-223.518126,0.0003726,30]
[388017089,1758965465050,-480.0,0.0003726,9]
[388017090,1758965465060,-10000.0,0.0003726,30]
[388017091,1758965465069,-2529.23,0.0003726,9]
[388017092,1758965465078,-1167.67,0.0003726,9]
[388017093,1758965465088,-10000.0,0.0003726,30]
[388017094,1758965465099,-714.37,0.0003726,9]
[388017095,1758965465108,-480.0,0.0003726,9]
[388017096,1758965465118,-10000.0,0.0003726,30]
[388017097,1758965465129,-1035.27,0.0003726,9]
[388017098,1758965465138,-480.0,0.0003726,9]
[388017099,1758965465147,-480.0,0.0003726,9]
[388017100,1758965465156,-480.0,0.0003726,9]
[388017101,1758965465166,-151.0,0.0003726,30]
[388017102,1758965465175,-215.64272,0.0003726,30]
[388017103,1758965465184,-3811.06,0.0003726,9]
[388017104,1758965465193,-3093.5,0.0003726,9]
[388017105,1758965465203,-1119.8,0.0003726,9]
[388017106,1758965465212,-2207.8,0.0003726,9]
[388017107,1758965465221,-1235.411703,0.0003726,30]
[388017108,1758965465231,-480.0,0.0003726,9]
[388017109,1758965465241,-480.0,0.0003726,9]
[388017110,1758965465251,-1235.411703,0.0003726,30]
[388017111,1758965465260,-1005.54,0.0003726,9]
[388017112,1758965465270,-480.0,0.0003726,9]
[388017113,1758965465280,-6806.21,0.0003726,3]
[388017114,1758965465289,-1235.411703,0.0003726,30]
[388017115,1758965465299,-10518.38,0.0003726,9]
[388017116,1758965465309,-1090.43,0.0003726,9]
[388017117,1758965465321,-205.10876,0.0003726,30]
[388017118,1758965465330,-1235.411703,0.0003726,30]
[388017119,1758965465340,-205.10876,0.0003726,30]
[388017120,1758965465350,-205.10876,0.0003726,30]
[388017121,1758965465359,-480.0,0.0003726,9]
[388017122,1758965465369,-205.10876,0.0003726,30]
[388017123,1758965465378,-5287.88,0.0003726,9]
[388017124,1758965465388,-2000.0,0.00037316,5]
[388017125,1758965465397,-1012.79700513,0.00037316,5]
[388017126,1758965465407,-2000.0,0.00037316,5]
[388017127,1758965465417,-1500.03115209,0.00037316,5]
[388017128,1758965465427,-1000.0,0.00037321,5]
[388017129,1758965465436,-190.0,0.00037351,30]
[388017130,1758965465446,-2447.31,0.000374,14]
[388017131,1758965465455,-1152.0,0.00037489,2]
[388017132,1758965465465,-1001.71,0.00037534,9]
[388017133,1758965465474,-497.21,0.00037534,9]
[388017134,1758965465483,-1355.5,0.00037534,9]
[388017135,1758965465493,-718.46,0.00037534,9]
[388017136,1758965465503,-1559.42,0.00037534,9]
[388017137,1758965465512,-480.0,0.00037534,9]
[388017138,1758965465522,-842.28,0.00037534,9]
[388017139,1758965465531,-1496.11,0.00037534,9]
[388017140,1758965465540,-480.0,0.00037534,9]
[388017141,1758965465551,-484.20550468,0.00037534,9]
[388017142,1758965465560,-333.37686379,0.00037534,9]
[388017143,1758965465570,-1203.69,0.00037534,9]
[388017144,1758965465579,-480.0,0.00037534,9]
[388017145,1758965465589,-1447.48,0.00037534,9]
[388017146,1758965465599,-480.0,0.00037534,9]
[388017147,1758965465608,-625.44300185,0.00037534,9]
[388017148,1758965465617,-884.86,0.00037534,9]
[388017149,1758965465626,-222.31507473,0.00037534,9]
[388017150,1758965465636,-480.0,0.00037534,9]
[388017151,1758965465645,-480.0,0.00037534,9]
[388017152,1758965465655,-618.88,0.00037534,9]
[388017153,1758965465665,-480.0,0.00037534,9]
[388017154,1758965465674,-530.85,0.00037534,9]
[388017155,1758965465683,-252.24774113,0.00037534,9]
[388017156,1758965465692,-484.88816105,0.00037534,9]
[388017157,1758965465822,-4684.08,0.00037534,9]
[388017158,1758965465832,-480.0,0.00037534,9]
[388017159,1758965465842,-2673.58,0.00037534,9]
[388017160,1758965465851,-783.65,0.00037534,9]
[388017161,1758965465861,-480.0,0.00037534,9]
[388017162,1758965465870,-499.05,0.00037534,9]
[388017163,1758965465879,-480.0,0.00037534,9]
[388017164,1758965465889,-480.0,0.00037534,9]
[388017165,1758965465899,-1987.61,0.00037534,9]
[388017166,1758965465908,-480.0,0.00037534,9]
[388017167,1758965465917,-480.0,0.00037534,9]
[388017168,1758965465926,-480.0,0.00037534,9]
[388017169,1758965465935,-831.55,0.00037534,9]
[388017170,1758965465945,-480.0,0.00037534,9]
[388017171,1758965465954,-480.0,0.00037534,9]
[388017172,1758965465963,-480.0,0.00037534,9]
[388017173,1758965465973,-480.0,0.00037534,9]
[388017174,1758965465982,-480.0,0.00037534,9]
[388017175,1758965465991,-480.0,0.00037534,9]
[388017176,1758965466001,-480.0,0.00037534,9]
[388017177,1758965466011,-500.0,0.00037534,9]
[388017178,1758965466020,-481.12,0.00037534,9]
[388017179,1758965466029,-352.75253673,0.00037534,9]
[388017180,1758965466039,-480.0,0.00037534,9]
[388017181,1758965466048,-480.0,0.00037534,9]
[388017182,1758965466057,-2213.42,0.00037534,9]
[388017183,1758965466067,-524.72,0.00037534,9]
[388017184,1758965466076,-480.0,0.00037534,9]
[388017185,1758965466085,-480.0,0.00037534,9]
[388017186,1758965466096,-480.0,0.00037534,9]
[388017187,1758965466105,-480.0,0.00037534,9]
[388017188,1758965466114,-480.0,0.00037534,9]
[388017189,1758965466123,-480.0,0.00037534,9]
[388017190,1758965466132,-480.0,0.00037534,9]
[388017191,1758965466142,-480.0,0.00037534,9]
[388017192,1758965466151,-480.0,0.00037534,9]
[388017193,1758965466160,-480.0,0.00037534,9]
[388017194,1758965466169,-1547.23,0.00037534,9]
[388017195,1758965466178,-2056.39,0.00037534,9]
[388017196,1758965466186,-665.62,0.00037534,9]
[388017197,1758965466195,-11559.39,0.00037534,9]
[388017198,1758965466204,-480.0,0.00037534,9]
[388017199,1758965466213,-590.62,0.00037534,9]
[388017200,1758965466222,-564.21,0.00037534,9]
[388017201,1758965466231,-480.0,0.00037534,9]
[388017202,1758965466240,-4719.48,0.00037534,9]
[388017203,1758965466248,-639.4,0.00037534,9]
[388017204,1758965466258,-1096.73,0.00037534,9]
[388017205,1758965466267,-480.0,0.00037534,9]
[388017206,1758965466276,-480.0,0.00037534,9]
[388017207,1758965466286,-806.44,0.00037534,9]
[388017208,1758965466296,-607.28258901,0.00037534,9]
[388017209,1758965466305,-1018.09,0.00037534,9]
[388017210,1758965466316,-1571.98,0.00037534,9]
[388017211,1758965466325,-3766.13,0.00037534,9]
[388017212,1758965466334,-11819.47,0.00037534,9]
[388017213,1758965466343,-3081.99,0.00037534,9]
[388017214,1758965466353,-480.0,0.00037534,9]
[388017215,1758965466362,-1197.51,0.00037534,9]
[388017216,1758965466371,-926.52,0.00037534,9]
[388017217,1758965466380,-480.0,0.00037534,9]
[388017218,1758965466389,-480.0,0.00037534,9]
[388017219,1758965466399,-842.78,0.00037534,9]
[388017220,1758965466408,-480.0,0.00037534,9]
[388017221,1758965466418,-928.76,0.00037534,9]
[388017222,1758965466427,-480.0,0.00037534,9]
[388017223,1758965466437,-3295.26,0.00037534,9]
[388017224,1758965466446,-480.0,0.00037534,9]
[388017225,1758965466455,-580.93,0.00037534,9]
[388017226,1758965466464,-480.0,0.00037534,9]
[388017227,1758965466474,-1043.77,0.00037534,9]
[388017228,1758965466483,-3874.75,0.00037534,9]
[388017229,1758965466492,-1009.91,0.00037534,9]
[388017230,1758965466501,-942.67,0.00037534,9]
[388017231,1758965466511,-501.21,0.00037534,9]
[388017232,1758965466520,-1313.89,0.00037534,9]
[388017233,1758965466529,-3223.0,0.00037534,9]
[388017234,1758965466539,-584.45,0.00037534,9]
[388017235,1758965466548,-1627.27,0.00037534,9]
[388017236,1758965466557,-4633.27,0.00037534,9]
[388017237,1758965466567,-1134.83,0.00037534,9]
[388017238,1758965466576,-480.0,0.00037534,9]
[388017239,1758965466586,-21619.91,0.00037534,9]
[388017240,1758965466595,-5441.71,0.00037534,9]
[388017241,1758965466604,-480.0,0.00037534,9]
[388017242,1758965466615,-480.0,0.00037534,9]
[388017243,1758965466624,-480.0,0.00037534,9]
[388017244,1758965466633,-480.0,0.00037534,9]
[388017245,1758965466643,-480.0,0.00037534,9]
[388017246,1758965466652,-843.43,0.00037534,9]
[388017247,1758965466662,-5508.47,0.00037534,9]
[388017248,1758965466671,-480.0,0.00037534,9]
[388017249,1758965466680,-1220.46,0.00037534,9]
[388017250,1758965466690,-697.3,0.00037534,9]
[388017251,1758965466701,-542.6,0.00037534,9]
[388017252,1758965466711,-5350.41,0.00037534,9]
[388017253,1758965466721,-498.04,0.00037534,9]
[388017254,1758965466730,-2528.77,0.00037534,9]
[388017255,1758965466745,-1397.41,0.00037534,9]
[388017256,1758965466754,-480.0,0.00037534,9]
[388017257,1758965466763,-6012.15,0.00037534,9]
[388017258,1758965466773,-518.88,0.00037534,9]
[388017259,1758965466783,-1211.93,0.00037534,9]
[388017260,1758965466792,-803.75,0.00037534,9]
[388017261,1758965466802,-2078.22,0.00037534,9]
[388017262,1758965466812,-1641.68,0.00037534,9]
[388017263,1758965466821,-480.0,0.00037534,9]
[388017264,1758965466830,-856.37,0.00037534,9]
[388017265,1758965466839,-1316.86,0.00037534,9]
[388017266,1758965466849,-480.0,0.00037534,9]
[388017267,1758965466859,-480.0,0.00037534,9]
[388017268,1758965466868,-1543.55,0.00037534,9]
[388017269,1758965466877,-3123.63,0.00037534,9]
[388017270,1758965466887,-480.0,0.00037534,9]
[388017271,1758965466896,-11258.56,0.00037534,9]
[388017272,1758965466906,-480.0,0.00037534,9]
[388017273,1758965466915,-712.46,0.00037534,9]
[388017274,1758965466925,-732.34,0.00037534,9]
[388017275,1758965466934,-568.64,0.00037534,9]
[388017276,1758965466944,-2108.14,0.00037534,9]
[388017277,1758965466953,-480.0,0.00037534,9]
[388017278,1758965466963,-6087.94,0.00037534,9]
[388017279,1758965466973,-1746.09,0.00037534,9]
[388017280,1758965466982,-8187.01,0.00037534,9]
[388017281,1758965466991,-2297.1,0.00037534,9]
[388017282,1758965467001,-621.54,0.00037534,9]
[388017283,1758965467011,-2086.48,0.00037534,9]
[388017284,1758965467021,-602.0,0.00037534,9]
[388017285,1758965467030,-683.86,0.00037534,9]
[388017286,1758965467041,-5953.82,0.00037534,9]
[388017287,1758965467051,-5300.22,0.00037534,9]
[388017288,1758965467060,-2958.79,0.00037534,9]
[388017289,1758965467070,-480.0,0.00037534,9]
[388017290,1758965467080,-1432.8,0.00037534,9]
[388017291,1758965467090,-1182.75,0.00037534,9]
[388017292,1758965467100,-1660.81,0.00037534,9]
[388017293,1758965467110,-3277.19,0.00037534,9]
[388017294,1758965467120,-2989.0,0.00037534,9]
[388017295,1758965467129,-2089.79,0.00037534,9]
[388017296,1758965467139,-518.69412798,0.00037534,9]
[388017297,1758965467148,-480.0,0.00037534,9]
[388017298,1758965467158,-480.0,0.00037534,9]
[388017299,1758965467167,-3523.57,0.00037534,9]
[388017300,1758965467176,-3121.27,0.00037534,9]
[388017301,1758965467185,-480.0,0.00037534,9]
[388017302,1758965467195,-480.0,0.00037534,9]
[388017303,1758965467204,-486.42888643,0.00037534,9]
[388017304,1758965467214,-1508.49,0.00037534,9]
[388017305,1758965467228,-7154.49,0.00037534,9]
[388017306,1758965467237,-1323.11,0.00037534,9]
[388017307,1758965467246,-480.0,0.00037534,9]
[388017308,1758965467256,-1494.64,0.00037534,9]
[388017309,1758965467266,-480.0,0.00037534,9]
[388017310,1758965467275,-2751.74,0.00037534,9]
[388017311,1758965467285,-480.0,0.00037534,9]
[388017312,1758965467295,-644.56,0.00037534,9]
[388017313,1758965467304,-480.0,0.00037534,9]
[388017314,1758965467314,-1430.73,0.00037534,9]
[388017315,1758965467323,-3310.18,0.00037534,9]
[388017316,1758965467333,-1239.55,0.00037534,9]
[388017317,1758965467343,-480.0,0.00037534,9]
[388017318,1758965467352,-480.0,0.00037534,9]
[388017319,1758965467361,-2529.23,0.00037534,9]